[Event "Titled Tuesday Blitz May 03 Early 2022"]
[White "Xu, Yi"]
[Black "Tasev, Dejan"]
[WhiteFideId "8605564"]
[BlackFideId "936618"]
[WhiteElo "2471"]
[BlackElo "2253"]
[Result "1-0"]
[Round "03"]
[TimeControl "180+1"]
[Date "2022.05.03"]
[WhiteClock "0:00:09"]
[BlackClock "0:00:15"]

1. e4 {[%clk 0:03:00]}  e5 {[%clk 0:02:59]} 2. Nf3 {[%clk 0:03:01]}  Nc6 {[%clk 0:02:59]} 3. Bc4 {[%clk 0:03:01]}  Nf6 {[%clk 0:02:58]} 4. d3 {[%clk 0:03:01]}  h6 {[%clk 0:02:57]} 5. O-O {[%clk 0:03:01]}  Bc5 {[%clk 0:02:57]} 6. c3 {[%clk 0:02:58]}  Bb6 {[%clk 0:02:53]} 7. a4 {[%clk 0:02:57]}  a6 {[%clk 0:02:51]} 8. Nbd2 {[%clk 0:02:52]}  d6 {[%clk 0:02:51]} 9. b4 {[%clk 0:02:51]}  Be6 {[%clk 0:02:47]} 10. Bxe6 {[%clk 0:02:44]}  fxe6 {[%clk 0:02:45]} 11. a5 {[%clk 0:02:42]}  Ba7 {[%clk 0:02:43]} 12. Re1 {[%clk 0:02:41]}  O-O {[%clk 0:02:42]} 13. Nf1 {[%clk 0:02:39]}  Qe8 {[%clk 0:02:37]} 14. Ra2 {[%clk 0:02:37]}  Nh5 {[%clk 0:02:29]} 15. h3 {[%clk 0:02:36]}  Nf4 {[%clk 0:02:26]} 16. Bxf4 {[%clk 0:02:35]}  Rxf4 {[%clk 0:02:24]} 17. g3 {[%clk 0:02:20]}  Rf6 {[%clk 0:02:19]} 18. Kg2 {[%clk 0:02:20]}  Qf7 {[%clk 0:02:14]} 19. N1h2 {[%clk 0:02:20]}  Rf8 {[%clk 0:02:08]} 20. Rf1 {[%clk 0:02:08]}  Ne7 {[%clk 0:01:59]} 21. d4 {[%clk 0:01:58]}  Ng6 {[%clk 0:01:48]} 22. Ng1 {[%clk 0:01:36]}  exd4 {[%clk 0:01:43]} 23. cxd4 {[%clk 0:01:34]}  e5 {[%clk 0:01:41]} 24. d5 {[%clk 0:01:25]}  Qd7 {[%clk 0:01:06]} 25. Qh5 {[%clk 0:01:14]}  Ne7 {[%clk 0:00:49]} 26. Ng4 {[%clk 0:01:12]}  R6f7 {[%clk 0:00:42]} 27. Rc2 {[%clk 0:01:03]}  Kh7 {[%clk 0:00:32]} 28. h4 {[%clk 0:00:38]}  Ng8 {[%clk 0:00:29]} 29. Nh3 {[%clk 0:00:26]}  g6 {[%clk 0:00:17]} 30. Ng5+ {[%clk 0:00:25]}  Kg7 {[%clk 0:00:17]} 31. Ne6+ {[%clk 0:00:25]}  Qxe6 {[%clk 0:00:11]} 32. dxe6 {[%clk 0:00:25]}  gxh5 {[%clk 0:00:12]} 33. exf7 {[%clk 0:00:25]}  Rxf7 {[%clk 0:00:12]} 34. Ne3 {[%clk 0:00:25]}  Nf6 {[%clk 0:00:11]} 35. Nd5 {[%clk 0:00:20]}  Nxd5 {[%clk 0:00:11]} 36. exd5 {[%clk 0:00:20]}  Kg6 {[%clk 0:00:11]} 37. Rfc1 {[%clk 0:00:20]}  Bb8 {[%clk 0:00:11]} 38. f3 {[%clk 0:00:20]}  Kf5 {[%clk 0:00:11]} 39. Rc4 {[%clk 0:00:20]}  Kg6 {[%clk 0:00:12]} 40. Kf2 {[%clk 0:00:20]}  Kf5 {[%clk 0:00:11]} 41. Ke2 {[%clk 0:00:20]}  Kg6 {[%clk 0:00:11]} 42. g4 {[%clk 0:00:17]}  hxg4 {[%clk 0:00:11]} 43. Rxg4+ {[%clk 0:00:17]}  Kf5 {[%clk 0:00:12]} 44. Rcg1 {[%clk 0:00:17]}  Ba7 {[%clk 0:00:11]} 45. Rg7 {[%clk 0:00:17]}  Kf6 {[%clk 0:00:11]} 46. R1g6+ {[%clk 0:00:16]}  Ke7 {[%clk 0:00:11]} 47. Rxf7+ {[%clk 0:00:15]}  Kxf7 {[%clk 0:00:12]} 48. Rxh6 {[%clk 0:00:16]}  Kg7 {[%clk 0:00:12]} 49. Re6 {[%clk 0:00:16]}  Kf7 {[%clk 0:00:12]} 50. h5 {[%clk 0:00:15]}  c6 {[%clk 0:00:13]} 51. h6 {[%clk 0:00:14]}  cxd5 {[%clk 0:00:12]} 52. Re7+ {[%clk 0:00:08]}  Kxe7 {[%clk 0:00:10]} 53. h7 {[%clk 0:00:07]}  e4 {[%clk 0:00:11]} 54. h8=Q {[%clk 0:00:07]}  exf3+ {[%clk 0:00:12]} 55. Kxf3 {[%clk 0:00:07]}  Kd7 {[%clk 0:00:13]} 56. Qg7+ {[%clk 0:00:07]}  Kc6 {[%clk 0:00:13]} 57. Ke2 {[%clk 0:00:08]}  Bb8 {[%clk 0:00:12]} 58. Kd3 {[%clk 0:00:08]}  Ba7 {[%clk 0:00:13]} 59. Qc3+ {[%clk 0:00:07]}  Kd7 {[%clk 0:00:13]} 60. Qg7+ {[%clk 0:00:06]}  Kc6 {[%clk 0:00:13]} 61. Qe7 {[%clk 0:00:06]}  Bg1 {[%clk 0:00:12]} 62. Qe8+ {[%clk 0:00:06]}  Kc7 {[%clk 0:00:13]} 63. b5 {[%clk 0:00:05]}  axb5 {[%clk 0:00:13]} 64. Qxb5 {[%clk 0:00:05]}  Bc5 {[%clk 0:00:14]} 65. Qb3 {[%clk 0:00:05]}  Kc6 {[%clk 0:00:14]} 66. Qa4+ {[%clk 0:00:06]}  Kc7 {[%clk 0:00:14]} 67. Kc2 {[%clk 0:00:06]}  d4 {[%clk 0:00:14]} 68. Qc4 {[%clk 0:00:06]}  Kc6 {[%clk 0:00:15]} 69. Kb3 {[%clk 0:00:07]}  d5 {[%clk 0:00:14]} 70. Qd3 {[%clk 0:00:07]}  Kc7 {[%clk 0:00:14]} 71. Ka4 {[%clk 0:00:08]}  Kc6 {[%clk 0:00:13]} 72. Qg6+ {[%clk 0:00:08]}  Bd6 {[%clk 0:00:13]} 73. Qc2+ {[%clk 0:00:08]}  Bc5 {[%clk 0:00:14]} 74. Qd3 {[%clk 0:00:08]}  Kd6 {[%clk 0:00:13]} 75. Kb5 {[%clk 0:00:09]}  Ba7 {[%clk 0:00:13]} 76. Qg6+ {[%clk 0:00:09]}  Kc7 {[%clk 0:00:14]} 77. Qf7+ {[%clk 0:00:09]}  Kc8 {[%clk 0:00:14]} 78. Qxd5 {[%clk 0:00:09]}  Kc7 {[%clk 0:00:14]} 79. Kc4 {[%clk 0:00:09]}  Kc8 {[%clk 0:00:14]} 80. Kb5 {[%clk 0:00:09]}  Kc7 {[%clk 0:00:14]} 81. Qf7+ {[%clk 0:00:09]}  Kc8 {[%clk 0:00:14]} 82. a6 {[%clk 0:00:09]}  bxa6+ {[%clk 0:00:15]} 83. Kc6 {[%clk 0:00:09]} 1-0


[Site "https://www.chess.com"]

[Event "Titled Tuesday Blitz May 03 Early 2022"]
[White "Yilmaz, Mustafa"]
[Black "Nguyen Hong Nhung"]
[WhiteFideId "6302718"]
[BlackFideId "12412201"]
[WhiteElo "2568"]
[BlackElo "1758"]
[Result "0-1"]
[Round "03"]
[TimeControl "180+1"]
[Date "2022.05.03"]
[WhiteClock "0:00:14"]
[BlackClock "0:00:15"]

1. Nf3 {[%clk 0:03:00]}  f5 {[%clk 0:02:59]} 2. d3 {[%clk 0:03:00]}  Nf6 {[%clk 0:02:59]} 3. e4 {[%clk 0:03:00]}  d6 {[%clk 0:02:59]} 4. Nc3 {[%clk 0:02:58]}  e5 {[%clk 0:02:58]} 5. exf5 {[%clk 0:02:57]}  Bxf5 {[%clk 0:02:58]} 6. d4 {[%clk 0:02:57]}  e4 {[%clk 0:02:51]} 7. Nd2 {[%clk 0:02:42]}  d5 {[%clk 0:02:44]} 8. Nb3 {[%clk 0:02:41]}  Nbd7 {[%clk 0:02:40]} 9. Bf4 {[%clk 0:02:38]}  c6 {[%clk 0:02:25]} 10. h3 {[%clk 0:02:39]}  Be7 {[%clk 0:02:25]} 11. g4 {[%clk 0:02:38]}  Bg6 {[%clk 0:02:23]} 12. h4 {[%clk 0:02:34]}  h5 {[%clk 0:02:17]} 13. g5 {[%clk 0:02:30]}  Ng4 {[%clk 0:02:14]} 14. Be2 {[%clk 0:02:30]}  O-O {[%clk 0:02:11]} 15. Bxg4 {[%clk 0:02:30]}  Rxf4 {[%clk 0:02:02]} 16. Bxh5 {[%clk 0:02:28]}  Qe8 {[%clk 0:01:46]} 17. Bxg6 {[%clk 0:02:23]}  Qxg6 {[%clk 0:01:47]} 18. Qe2 {[%clk 0:02:09]}  Raf8 {[%clk 0:01:45]} 19. Nd1 {[%clk 0:02:08]}  Qh7 {[%clk 0:01:21]} 20. Kd2 {[%clk 0:01:19]}  Bxg5 {[%clk 0:01:05]} 21. hxg5 {[%clk 0:00:44]}  Qxh1 {[%clk 0:01:06]} 22. Ne3 {[%clk 0:00:45]}  Qxa1 {[%clk 0:01:01]} 23. Nxa1 {[%clk 0:00:46]}  Rxf2 {[%clk 0:01:01]} 24. Nb3 {[%clk 0:00:45]}  Rxe2+ {[%clk 0:00:59]} 25. Kxe2 {[%clk 0:00:46]}  Rf3 {[%clk 0:00:57]} 26. c4 {[%clk 0:00:42]}  dxc4 {[%clk 0:00:48]} 27. Nd2 {[%clk 0:00:40]}  Rh3 {[%clk 0:00:37]} 28. Nexc4 {[%clk 0:00:33]}  Nb6 {[%clk 0:00:25]} 29. Na5 {[%clk 0:00:33]}  Rh2+ {[%clk 0:00:22]} 30. Ke1 {[%clk 0:00:28]}  e3 {[%clk 0:00:21]} 31. Nf1 {[%clk 0:00:29]}  Rxb2 {[%clk 0:00:20]} 32. Nxe3 {[%clk 0:00:29]}  Rxa2 {[%clk 0:00:19]} 33. Nxb7 {[%clk 0:00:29]}  Kf7 {[%clk 0:00:18]} 34. Nd8+ {[%clk 0:00:25]}  Kg6 {[%clk 0:00:18]} 35. Nxc6 {[%clk 0:00:20]}  Kxg5 {[%clk 0:00:19]} 36. d5 {[%clk 0:00:21]}  Kf4 {[%clk 0:00:18]} 37. Nb4 {[%clk 0:00:10]}  Ra4 {[%clk 0:00:15]} 38. Nec2 {[%clk 0:00:10]}  Ke5 {[%clk 0:00:13]} 39. Kd2 {[%clk 0:00:06]}  Nxd5 {[%clk 0:00:12]} 40. Nc6+ {[%clk 0:00:06]}  Kd6 {[%clk 0:00:13]} 41. N6d4 {[%clk 0:00:06]}  Rc4 {[%clk 0:00:11]} 42. Nf5+ {[%clk 0:00:06]}  Ke5 {[%clk 0:00:09]} 43. Nxg7 {[%clk 0:00:06]}  Rh4 {[%clk 0:00:09]} 44. Ne1 {[%clk 0:00:05]}  Rh7 {[%clk 0:00:07]} 45. Nd3+ {[%clk 0:00:05]}  Kf6 {[%clk 0:00:05]} 46. Ne8+ {[%clk 0:00:05]}  Ke6 {[%clk 0:00:05]} 47. Nc5+ {[%clk 0:00:04]}  Ke5 {[%clk 0:00:04]} 48. Kd3 {[%clk 0:00:04]}  Rh3+ {[%clk 0:00:04]} 49. Kc4 {[%clk 0:00:04]}  Nb6+ {[%clk 0:00:03]} 50. Kb5 {[%clk 0:00:04]}  Rh8 {[%clk 0:00:04]} 51. Ng7 {[%clk 0:00:05]}  Kd5 {[%clk 0:00:03]} 52. Nf5 {[%clk 0:00:04]}  Rh7 {[%clk 0:00:03]} 53. Ne3+ {[%clk 0:00:04]}  Kd4 {[%clk 0:00:03]} 54. Nc2+ {[%clk 0:00:04]}  Kc3 {[%clk 0:00:03]} 55. Nb4 {[%clk 0:00:05]}  Rh5 {[%clk 0:00:04]} 56. Na2+ {[%clk 0:00:05]}  Kb2 {[%clk 0:00:04]} 57. Nb4 {[%clk 0:00:04]}  Nd7 {[%clk 0:00:04]} 58. Na6 {[%clk 0:00:05]}  Nxc5 {[%clk 0:00:04]} 59. Nxc5 {[%clk 0:00:06]}  Kc3 {[%clk 0:00:05]} 60. Kc6 {[%clk 0:00:06]}  Kc4 {[%clk 0:00:05]} 61. Nb7 {[%clk 0:00:06]}  Rh6+ {[%clk 0:00:06]} 62. Nd6+ {[%clk 0:00:07]}  Kb4 {[%clk 0:00:06]} 63. Kd5 {[%clk 0:00:07]}  a5 {[%clk 0:00:07]} 64. Nf5 {[%clk 0:00:07]}  Rh5 {[%clk 0:00:07]} 65. Ke4 {[%clk 0:00:07]}  Rxf5 {[%clk 0:00:08]} 66. Kxf5 {[%clk 0:00:08]}  a4 {[%clk 0:00:09]} 67. Ke4 {[%clk 0:00:09]}  a3 {[%clk 0:00:09]} 68. Kd3 {[%clk 0:00:10]}  Kb3 {[%clk 0:00:10]} 69. Kd2 {[%clk 0:00:10]}  Kb2 {[%clk 0:00:11]} 70. Ke3 {[%clk 0:00:10]}  a2 {[%clk 0:00:12]} 71. Kd4 {[%clk 0:00:11]}  a1=Q {[%clk 0:00:12]} 72. Kc4 {[%clk 0:00:12]}  Qa3 {[%clk 0:00:13]} 73. Kd5 {[%clk 0:00:13]}  Qc3 {[%clk 0:00:13]} 74. Ke4 {[%clk 0:00:13]}  Kb3 {[%clk 0:00:13]} 75. Kf5 {[%clk 0:00:14]}  Qd4 {[%clk 0:00:13]} 76. Ke6 {[%clk 0:00:14]}  Kc4 {[%clk 0:00:14]} 77. Kf5 {[%clk 0:00:14]}  Kd5 {[%clk 0:00:14]} 78. Kg6 {[%clk 0:00:14]}  Qe5 {[%clk 0:00:15]} 79. Kh7 {[%clk 0:00:14]}  Qg5 {[%clk 0:00:14]} 80. Kh8 {[%clk 0:00:14]}  Ke6 {[%clk 0:00:15]} 0-1


[Site "https://www.chess.com"]

[Event "Titled Tuesday Blitz May 03 Early 2022"]
[White "Zaksaite, Salomeja"]
[Black "Gurevich, Dmitry"]
[WhiteFideId "12801496"]
[BlackFideId "2000407"]
[WhiteElo "1953"]
[BlackElo "2506"]
[Result "0-1"]
[Round "03"]
[TimeControl "180+1"]
[Date "2022.05.03"]
[WhiteClock "0:00:07"]
[BlackClock "0:01:06"]

1. e4 {[%clk 0:03:00]}  c5 {[%clk 0:02:59]} 2. Nf3 {[%clk 0:03:00]}  d6 {[%clk 0:02:59]} 3. d4 {[%clk 0:02:58]}  cxd4 {[%clk 0:02:59]} 4. Nxd4 {[%clk 0:02:58]}  Nf6 {[%clk 0:02:59]} 5. Nc3 {[%clk 0:02:58]}  Nc6 {[%clk 0:02:59]} 6. Be3 {[%clk 0:02:54]}  Ng4 {[%clk 0:02:58]} 7. Bb5 {[%clk 0:02:23]}  Nxe3 {[%clk 0:02:56]} 8. Nxc6 {[%clk 0:02:14]}  bxc6 {[%clk 0:02:56]} 9. Bxc6+ {[%clk 0:02:14]}  Bd7 {[%clk 0:02:56]} 10. Bxd7+ {[%clk 0:02:14]}  Qxd7 {[%clk 0:02:56]} 11. fxe3 {[%clk 0:02:14]}  g6 {[%clk 0:02:47]} 12. O-O {[%clk 0:01:55]}  Bg7 {[%clk 0:02:47]} 13. Qd3 {[%clk 0:01:54]}  Rc8 {[%clk 0:02:37]} 14. Rab1 {[%clk 0:01:43]}  Bxc3 {[%clk 0:02:29]} 15. bxc3 {[%clk 0:01:42]}  O-O {[%clk 0:02:26]} 16. Rb3 {[%clk 0:01:41]}  Qe6 {[%clk 0:02:16]} 17. Qd5 {[%clk 0:01:19]}  Rc4 {[%clk 0:02:06]} 18. Qxe6 {[%clk 0:01:16]}  fxe6 {[%clk 0:02:05]} 19. Rxf8+ {[%clk 0:01:17]}  Kxf8 {[%clk 0:02:05]} 20. Kf2 {[%clk 0:01:10]}  Rxe4 {[%clk 0:02:03]} 21. Rb4 {[%clk 0:01:05]}  Re5 {[%clk 0:02:01]} 22. Ra4 {[%clk 0:00:50]}  a5 {[%clk 0:02:00]} 23. Kf3 {[%clk 0:00:45]}  Rc5 {[%clk 0:01:59]} 24. c4 {[%clk 0:00:42]}  Ke8 {[%clk 0:01:55]} 25. Ke4 {[%clk 0:00:42]}  Kd7 {[%clk 0:01:55]} 26. Kd4 {[%clk 0:00:40]}  e5+ {[%clk 0:01:52]} 27. Kd3 {[%clk 0:00:40]}  Kc6 {[%clk 0:01:50]} 28. Ra3 {[%clk 0:00:40]}  e4+ {[%clk 0:01:45]} 29. Kxe4 {[%clk 0:00:28]}  Rxc4+ {[%clk 0:01:45]} 30. Kd3 {[%clk 0:00:29]}  Rc5 {[%clk 0:01:44]} 31. Rb3 {[%clk 0:00:28]}  Rd5+ {[%clk 0:01:38]} 32. Ke2 {[%clk 0:00:25]}  h5 {[%clk 0:01:27]} 33. Rb8 {[%clk 0:00:20]}  Kd7 {[%clk 0:01:20]} 34. Rg8 {[%clk 0:00:18]}  Rg5 {[%clk 0:01:18]} 35. g3 {[%clk 0:00:18]}  Ke6 {[%clk 0:01:17]} 36. Kd3 {[%clk 0:00:17]}  Kf7 {[%clk 0:01:14]} 37. Ra8 {[%clk 0:00:16]}  Rf5 {[%clk 0:01:13]} 38. c4 {[%clk 0:00:16]}  g5 {[%clk 0:01:12]} 39. a4 {[%clk 0:00:15]}  g4 {[%clk 0:01:12]} 40. Kd4 {[%clk 0:00:14]}  Rf2 {[%clk 0:01:12]} 41. Rxa5 {[%clk 0:00:14]}  Rxh2 {[%clk 0:01:12]} 42. Rf5+ {[%clk 0:00:13]}  Kg6 {[%clk 0:01:11]} 43. Rf1 {[%clk 0:00:11]}  Ra2 {[%clk 0:01:07]} 44. Kd5 {[%clk 0:00:07]}  Rxa4 {[%clk 0:01:07]} 45. Rc1 {[%clk 0:00:07]}  Ra5+ {[%clk 0:01:07]} 46. Ke6 {[%clk 0:00:07]}  Re5+ {[%clk 0:01:06]} 47. Kd7 {[%clk 0:00:07]}  Rxe3 {[%clk 0:01:06]} 0-1


[Site "https://www.chess.com"]

[Event "Titled Tuesday Blitz May 03 Early 2022"]
[White "Abarca Gonzalez, Nicolas"]
[Black "Hovhannisyan, Robert"]
[WhiteFideId "3409422"]
[BlackFideId "13302507"]
[WhiteElo "2504"]
[BlackElo "2570"]
[Result "0-1"]
[Round "04"]
[TimeControl "180+1"]
[Date "2022.05.03"]
[WhiteClock "0:00:02"]
[BlackClock "0:00:07"]

1. e4 {[%clk 0:03:00]}  e5 {[%clk 0:02:59]} 2. Nf3 {[%clk 0:02:55]}  Nc6 {[%clk 0:02:59]} 3. Bc4 {[%clk 0:02:56]}  Bc5 {[%clk 0:02:58]} 4. d4 {[%clk 0:02:55]}  exd4 {[%clk 0:02:54]} 5. c3 {[%clk 0:02:31]}  Nf6 {[%clk 0:02:54]} 6. O-O {[%clk 0:02:31]}  Nxe4 {[%clk 0:02:51]} 7. cxd4 {[%clk 0:02:31]}  d5 {[%clk 0:02:51]} 8. dxc5 {[%clk 0:02:31]}  dxc4 {[%clk 0:02:51]} 9. Qe2 {[%clk 0:02:32]}  Qd3 {[%clk 0:02:44]} 10. Qxd3 {[%clk 0:02:24]}  cxd3 {[%clk 0:02:44]} 11. Re1 {[%clk 0:02:24]}  f5 {[%clk 0:02:42]} 12. Bf4 {[%clk 0:02:24]}  O-O {[%clk 0:02:20]} 13. Bxc7 {[%clk 0:02:21]}  Be6 {[%clk 0:02:19]} 14. Nc3 {[%clk 0:02:15]}  Rac8 {[%clk 0:02:02]} 15. Bd6 {[%clk 0:02:00]}  Nxc3 {[%clk 0:01:40]} 16. bxc3 {[%clk 0:01:57]}  Rfe8 {[%clk 0:01:39]} 17. Reb1 {[%clk 0:01:02]}  Bd5 {[%clk 0:01:35]} 18. Rd1 {[%clk 0:00:57]}  Bc4 {[%clk 0:01:17]} 19. Bf4 {[%clk 0:00:52]}  Rcd8 {[%clk 0:01:08]} 20. Be3 {[%clk 0:00:49]}  h6 {[%clk 0:01:04]} 21. g3 {[%clk 0:00:48]}  Kf7 {[%clk 0:01:01]} 22. h4 {[%clk 0:00:47]}  Ba6 {[%clk 0:00:40]} 23. Rab1 {[%clk 0:00:39]}  Ne5 {[%clk 0:00:32]} 24. Nxe5+ {[%clk 0:00:32]}  Rxe5 {[%clk 0:00:32]} 25. Rb4 {[%clk 0:00:33]}  Red5 {[%clk 0:00:29]} 26. Rd2 {[%clk 0:00:31]}  Kg6 {[%clk 0:00:24]} 27. Ra4 {[%clk 0:00:30]}  Rc8 {[%clk 0:00:21]} 28. Kg2 {[%clk 0:00:29]}  Kh5 {[%clk 0:00:20]} 29. Kh3 {[%clk 0:00:29]}  g5 {[%clk 0:00:20]} 30. hxg5 {[%clk 0:00:24]}  hxg5 {[%clk 0:00:21]} 31. Rb4 {[%clk 0:00:18]}  Kg6 {[%clk 0:00:16]} 32. Kg2 {[%clk 0:00:13]}  g4 {[%clk 0:00:13]} 33. Ra4 {[%clk 0:00:13]}  Rdxc5 {[%clk 0:00:13]} 34. Bxc5 {[%clk 0:00:13]}  Rxc5 {[%clk 0:00:14]} 35. Rxa6+ {[%clk 0:00:13]}  bxa6 {[%clk 0:00:14]} 36. Rxd3 {[%clk 0:00:14]}  Ra5 {[%clk 0:00:15]} 37. Rd2 {[%clk 0:00:14]}  Ra3 {[%clk 0:00:12]} 38. Rd6+ {[%clk 0:00:05]}  Kg5 {[%clk 0:00:12]} 39. Rc6 {[%clk 0:00:05]}  Rxa2 {[%clk 0:00:08]} 40. c4 {[%clk 0:00:06]}  a5 {[%clk 0:00:07]} 41. Ra6 {[%clk 0:00:05]}  a4 {[%clk 0:00:07]} 42. Rxa7 {[%clk 0:00:05]}  Kf6 {[%clk 0:00:08]} 43. Ra5 {[%clk 0:00:04]}  Ke6 {[%clk 0:00:07]} 44. Kf1 {[%clk 0:00:04]}  a3 {[%clk 0:00:07]} 45. Kg2 {[%clk 0:00:03]}  Ra1 {[%clk 0:00:07]} 46. c5 {[%clk 0:00:03]}  Kd5 {[%clk 0:00:07]} 47. c6+ {[%clk 0:00:03]}  Kxc6 {[%clk 0:00:06]} 48. Rxf5 {[%clk 0:00:04]}  Rc1 {[%clk 0:00:03]} 49. Ra5 {[%clk 0:00:03]}  Rc3 {[%clk 0:00:03]} 50. Ra8 {[%clk 0:00:02]}  Kb7 {[%clk 0:00:03]} 51. Ra4 {[%clk 0:00:02]}  Kb6 {[%clk 0:00:03]} 52. Rxg4 {[%clk 0:00:03]}  Kb5 {[%clk 0:00:03]} 53. Rg5+ {[%clk 0:00:03]}  Kb4 {[%clk 0:00:03]} 54. Rg8 {[%clk 0:00:04]}  Rc5 {[%clk 0:00:03]} 55. Rb8+ {[%clk 0:00:04]}  Rb5 {[%clk 0:00:03]} 56. Re8 {[%clk 0:00:04]}  a2 {[%clk 0:00:03]} 57. Re1 {[%clk 0:00:04]}  Ka3 {[%clk 0:00:03]} 58. Ra1 {[%clk 0:00:04]}  Rb1 {[%clk 0:00:04]} 59. Rxa2+ {[%clk 0:00:05]}  Kxa2 {[%clk 0:00:05]} 60. f4 {[%clk 0:00:06]}  Kb3 {[%clk 0:00:05]} 61. Kf3 {[%clk 0:00:06]}  Kc4 {[%clk 0:00:06]} 62. Ke4 {[%clk 0:00:07]}  Re1+ {[%clk 0:00:05]} 63. Kf5 {[%clk 0:00:08]}  Kd5 {[%clk 0:00:06]} 64. g4 {[%clk 0:00:08]}  Kd6 {[%clk 0:00:07]} 65. Kf6 {[%clk 0:00:09]}  Kd7 {[%clk 0:00:07]} 66. Kf7 {[%clk 0:00:09]}  Re4 {[%clk 0:00:06]} 67. f5 {[%clk 0:00:07]}  Rxg4 {[%clk 0:00:07]} 68. f6 {[%clk 0:00:08]}  Rf4 {[%clk 0:00:07]} 69. Kg7 {[%clk 0:00:03]}  Ke6 {[%clk 0:00:07]} 70. f7 {[%clk 0:00:03]}  Rxf7+ {[%clk 0:00:08]} 71. Kg6 {[%clk 0:00:02]}  Rf5 {[%clk 0:00:07]} 72. Kh6 {[%clk 0:00:02]}  Kf7 {[%clk 0:00:07]} 73. Kh7 {[%clk 0:00:02]}  Rh5# {[%clk 0:00:07]} 0-1


[Site "https://www.chess.com"]

[Event "Titled Tuesday Blitz May 03 Early 2022"]
[White "Al-Tarboush, Ward"]
[Black "Darini, Pouria"]
[WhiteFideId "7601450"]
[BlackFideId "12502200"]
[WhiteElo "2276"]
[BlackElo "2489"]
[Result "0-1"]
[Round "04"]
[TimeControl "180+1"]
[Date "2022.05.03"]
[WhiteClock "0:00:24"]
[BlackClock "0:00:21"]

1. e4 {[%clk 0:02:59]}  c5 {[%clk 0:02:59]} 2. Nf3 {[%clk 0:02:59]}  d6 {[%clk 0:03:00]} 3. d4 {[%clk 0:02:59]}  cxd4 {[%clk 0:03:00]} 4. Nxd4 {[%clk 0:03:00]}  Nf6 {[%clk 0:03:01]} 5. Nc3 {[%clk 0:03:00]}  a6 {[%clk 0:03:01]} 6. h3 {[%clk 0:03:00]}  e5 {[%clk 0:02:59]} 7. Nde2 {[%clk 0:03:00]}  h5 {[%clk 0:02:59]} 8. Bg5 {[%clk 0:02:59]}  Be6 {[%clk 0:02:51]} 9. g3 {[%clk 0:02:58]}  Nbd7 {[%clk 0:02:51]} 10. Bg2 {[%clk 0:02:58]}  Rc8 {[%clk 0:02:49]} 11. a4 {[%clk 0:02:57]}  Be7 {[%clk 0:02:45]} 12. Qd2 {[%clk 0:02:57]}  Qc7 {[%clk 0:02:13]} 13. b3 {[%clk 0:02:53]}  O-O {[%clk 0:02:06]} 14. O-O {[%clk 0:02:12]}  b5 {[%clk 0:02:06]} 15. axb5 {[%clk 0:02:06]}  axb5 {[%clk 0:02:07]} 16. Rac1 {[%clk 0:01:55]}  b4 {[%clk 0:02:02]} 17. Nd5 {[%clk 0:01:55]}  Bxd5 {[%clk 0:01:59]} 18. exd5 {[%clk 0:01:53]}  Qb6 {[%clk 0:01:48]} 19. Be3 {[%clk 0:01:48]}  Qb5 {[%clk 0:01:48]} 20. Rfd1 {[%clk 0:01:44]}  Rfe8 {[%clk 0:01:47]} 21. Qd3 {[%clk 0:01:10]}  Qb8 {[%clk 0:01:34]} 22. Kh1 {[%clk 0:01:04]}  Bd8 {[%clk 0:01:33]} 23. Ra1 {[%clk 0:00:54]}  Bb6 {[%clk 0:01:33]} 24. Ra6 {[%clk 0:00:52]}  Bxe3 {[%clk 0:01:25]} 25. Qxe3 {[%clk 0:00:53]}  Rxc2 {[%clk 0:01:25]} 26. Rc6 {[%clk 0:00:50]}  Nc5 {[%clk 0:01:18]} 27. Rc1 {[%clk 0:00:31]}  Rxc1+ {[%clk 0:01:13]} 28. Nxc1 {[%clk 0:00:32]}  e4 {[%clk 0:01:07]} 29. Ne2 {[%clk 0:00:31]}  Nxd5 {[%clk 0:01:05]} 30. Qg5 {[%clk 0:00:31]}  Re5 {[%clk 0:00:55]} 31. Qd2 {[%clk 0:00:27]}  Nxb3 {[%clk 0:00:48]} 32. Qb2 {[%clk 0:00:27]}  Na5 {[%clk 0:00:43]} 33. Nd4 {[%clk 0:00:27]}  Nxc6 {[%clk 0:00:26]} 34. Nxc6 {[%clk 0:00:27]}  Qb5 {[%clk 0:00:20]} 35. Nxe5 {[%clk 0:00:26]}  dxe5 {[%clk 0:00:21]} 36. Qxe5 {[%clk 0:00:25]}  Nc3 {[%clk 0:00:21]} 37. Qxh5 {[%clk 0:00:24]}  Qxh5 {[%clk 0:00:21]} 0-1


[Site "https://www.chess.com"]

[Event "Titled Tuesday Blitz May 03 Early 2022"]
[White "Araujo Filho, Luiz Antonio Coel"]
[Black "Jain, Naveen"]
[WhiteFideId "2130661"]
[BlackFideId "5003970"]
[WhiteElo "2309"]
[BlackElo "2036"]
[Result "0-1"]
[Round "04"]
[TimeControl "180+1"]
[Date "2022.05.03"]
[WhiteClock "0:00:01"]
[BlackClock "0:00:01"]

1. d4 {[%clk 0:03:00]}  Nf6 {[%clk 0:02:59]} 2. Nf3 {[%clk 0:03:01]}  e6 {[%clk 0:03:00]} 3. e3 {[%clk 0:02:59]}  d5 {[%clk 0:03:00]} 4. Bd3 {[%clk 0:02:57]}  c5 {[%clk 0:03:00]} 5. c3 {[%clk 0:02:55]}  Nc6 {[%clk 0:03:00]} 6. Nbd2 {[%clk 0:02:53]}  Bd6 {[%clk 0:03:00]} 7. Qe2 {[%clk 0:02:53]}  O-O {[%clk 0:02:59]} 8. dxc5 {[%clk 0:02:52]}  Bxc5 {[%clk 0:02:58]} 9. e4 {[%clk 0:02:53]}  dxe4 {[%clk 0:02:46]} 10. Nxe4 {[%clk 0:02:52]}  Nxe4 {[%clk 0:02:43]} 11. Bxe4 {[%clk 0:02:51]}  f5 {[%clk 0:02:39]} 12. Bc2 {[%clk 0:02:51]}  Qd6 {[%clk 0:02:15]} 13. O-O {[%clk 0:02:45]}  e5 {[%clk 0:02:09]} 14. Rd1 {[%clk 0:02:44]}  Qe7 {[%clk 0:02:09]} 15. Bg5 {[%clk 0:02:43]}  Qf7 {[%clk 0:01:50]} 16. Nxe5 {[%clk 0:02:35]}  Re8 {[%clk 0:01:19]} 17. Nxf7 {[%clk 0:02:01]}  Rxe2 {[%clk 0:01:18]} 18. Bb3 {[%clk 0:02:00]}  Kf8 {[%clk 0:00:49]} 19. Nd8 {[%clk 0:01:11]}  Ne7 {[%clk 0:00:15]} 20. Nf7 {[%clk 0:00:57]}  Nc6 {[%clk 0:00:11]} 21. Nd8 {[%clk 0:00:54]}  Ne7 {[%clk 0:00:11]} 22. Rd2 {[%clk 0:00:48]}  Bxf2+ {[%clk 0:00:10]} 23. Kf1 {[%clk 0:00:47]}  Rxd2 {[%clk 0:00:10]} 24. Bxd2 {[%clk 0:00:48]}  Bb6 {[%clk 0:00:10]} 25. Ne6+ {[%clk 0:00:44]}  Bxe6 {[%clk 0:00:10]} 26. Bxe6 {[%clk 0:00:45]}  Rd8 {[%clk 0:00:10]} 27. Bg5 {[%clk 0:00:38]}  Rd6 {[%clk 0:00:10]} 28. Re1 {[%clk 0:00:36]}  Nc6 {[%clk 0:00:06]} 29. Bxf5 {[%clk 0:00:29]}  Rd5 {[%clk 0:00:06]} 30. g4 {[%clk 0:00:25]}  Kf7 {[%clk 0:00:05]} 31. Bc1 {[%clk 0:00:21]}  Re5 {[%clk 0:00:03]} 32. Rd1 {[%clk 0:00:15]}  g6 {[%clk 0:00:02]} 33. Bc8 {[%clk 0:00:09]}  Re7 {[%clk 0:00:02]} 34. Bg5 {[%clk 0:00:04]}  Rc7 {[%clk 0:00:02]} 35. Bd7 {[%clk 0:00:03]}  Ne5 {[%clk 0:00:01]} 36. h3 {[%clk 0:00:03]}  Rxd7 {[%clk 0:00:01]} 37. Rxd7+ {[%clk 0:00:02]}  Nxd7 {[%clk 0:00:01]} 38. Bf4 {[%clk 0:00:03]}  Ke6 {[%clk 0:00:01]} 39. Kg2 {[%clk 0:00:04]}  Bc5 {[%clk 0:00:01]} 40. Kf3 {[%clk 0:00:04]}  Bd6 {[%clk 0:00:02]} 41. Be3 {[%clk 0:00:03]}  Ne5+ {[%clk 0:00:02]} 42. Ke4 {[%clk 0:00:03]}  Nc4 {[%clk 0:00:03]} 43. Bxa7 {[%clk 0:00:02]}  Nxb2 {[%clk 0:00:02]} 44. c4 {[%clk 0:00:01]}  Na4 {[%clk 0:00:02]} 45. Kd4 {[%clk 0:00:01]}  b6 {[%clk 0:00:01]} 0-1


[Site "https://www.chess.com"]